fUST/lending_fUST_20250302
["ID","MTS","AMOUNT","RATE_DAILY","PERIOD"]
[355090540,1740888646041,-359.76,0.00023965,2]
[355090541,1740888646051,-182.18,0.00023967,2]
[355090542,1740888646060,-500.0,0.00023967,2]
[355090543,1740888646070,-375.28,0.00023967,2]
[355090544,1740888646079,-500.0,0.00023967,2]
[355090545,1740888646089,-500.0,0.00023967,2]
[355090546,1740888646099,-500.0,0.00023967,2]
[355090547,1740888646108,-166.44,0.00023967,2]
[355090548,1740888646118,-500.0,0.00023967,2]
[355090549,1740888646128,-643.44,0.00023967,2]
[355090550,1740888646138,-292.2,0.00023967,2]
[355090551,1740888646148,-389.2,0.00023967,2]
[355090552,1740888646158,-407.94,0.00023967,2]
[355090553,1740888646168,-246.16,0.00023967,2]
[355090554,1740888646177,-500.0,0.00023967,2]
[355090555,1740888646187,-500.0,0.00023967,2]
[355090556,1740888646197,-330.22,0.00023967,2]
[355090557,1740888646206,-250.0,0.00024,30]
[355090558,1740888646216,-900.0,0.00024,30]
[355090559,1740888646226,-500.0,0.00024,30]
[355090560,1740888646235,-900.0,0.00024,30]
[355090561,1740888646245,-900.0,0.00024,30]
[355090562,1740888646255,-500.0,0.00024,30]
[355090563,1740888646265,-900.0,0.00024,30]
[355090564,1740888646275,-900.0,0.00024,30]
[355090565,1740888646285,-500.0,0.00024,30]
[355090566,1740888646296,-505.32987184,0.00024,30]
[355090567,1740888646306,-900.0,0.00024,30]
[355090568,1740888646316,-900.0,0.00024,30]
[355090569,1740888646326,-900.0,0.00024,30]
[355090570,1740888646336,-900.0,0.00024,30]
[355090571,1740888646346,-900.0,0.00024,30]
[355090572,1740888646357,-900.0,0.00024,30]
[355090573,1740888646366,-900.0,0.00024,30]
[355090574,1740888646376,-500.0,0.00024,30]
[355090575,1740888646386,-1578.1143091,0.00024,30]
[355090576,1740888646395,-500.0,0.00024,30]
[355090577,1740888646405,-500.0,0.00024,30]
[355090578,1740888646415,-500.0,0.00024,30]
[355090579,1740888646425,-500.0,0.00024,30]
[355090580,1740888646435,-506.86201686,0.00024,30]
[355090581,1740888646444,-500.0,0.00024,30]
[355090582,1740888646455,-502.09361764,0.00024,30]
[355090583,1740888646468,-1200.0,0.00024,30]
[355090584,1740888646487,-1200.0,0.00024,30]
[355090585,1740888646497,-1200.0,0.00024,30]
[355090586,1740888646507,-1200.0,0.00024,30]
[355090587,1740888646518,-1200.0,0.00024,30]
[355090588,1740888646529,-1200.0,0.00024,30]
[355090589,1740888646541,-1200.0,0.00024,30]
[355090590,1740888646553,-1200.0,0.00024,30]
[355090591,1740888646563,-1200.0,0.00024,30]
[355090592,1740888646573,-1200.0,0.00024,30]
[355090593,1740888646584,-1200.0,0.00024,30]
[355090594,1740888646594,-1200.0,0.00024,30]
[355090595,1740888646604,-1200.0,0.00024,30]
[355090596,1740888646614,-1391.87633131,0.00024,30]
[355090597,1740888646624,-488.24527153,0.00024019,2]
[355090598,1740888646634,-260.59788216,0.00024019,2]
[355090599,1740888646644,-500.0,0.00024022,2]
[355090600,1740888646727,-160.0,0.00024077,7]
[355090601,1740888646738,-19629.85965445,0.00024077,7]
[355090602,1740888646748,-160.0,0.00024077,7]
[355090603,1740888646757,-500.0,0.00024109,2]
[355090604,1740888646767,-405.22,0.00024109,2]
[355090605,1740888646776,-500.0,0.00024133,2]
[355090606,1740888646788,-500.0,0.00024133,2]
[355090607,1740888646798,-1025.66,0.00024133,2]
[355090608,1740888646807,-500.0,0.00024133,2]
[355090609,1740888646817,-500.0,0.00024133,2]
[355090610,1740888646827,-442.14,0.00024133,2]
[355090611,1740888646836,-525.58,0.00024133,2]
[355090612,1740888646846,-500.0,0.00024133,2]
[355090613,1740888646856,-1638.19,0.00024133,2]
[355090614,1740888646865,-500.0,0.00024133,2]
[355090615,1740888646875,-1982.43,0.00024133,2]
[355090616,1740888646885,-500.0,0.00024133,2]
[355090617,1740888646895,-573.94,0.00024133,2]
[355090618,1740888646905,-171.44,0.00024133,2]
[355090619,1740888646914,-500.0,0.00024133,2]
[355090620,1740888646924,-560.23,0.00024133,2]
[355090621,1740888646937,-1689.14,0.00024133,2]
[355090622,1740888646946,-1352.81,0.00024133,2]
[355090623,1740888646956,-953.11,0.00024133,2]
[355090624,1740888646966,-500.0,0.00024133,2]
[355090625,1740888646976,-500.0,0.00024133,2]
[355090626,1740888646986,-1000.0,0.00024133,5]
[355090627,1740888646996,-500.0,0.00024133,2]
[355090628,1740888647006,-579.91,0.00024133,2]
[355090629,1740888647017,-500.0,0.00024133,2]
[355090630,1740888647027,-500.0,0.00024133,2]
[355090631,1740888647037,-500.0,0.00024133,2]
[355090632,1740888647046,-425.16,0.00024133,2]
[355090633,1740888647057,-500.0,0.00024133,2]
[355090634,1740888647067,-1516.59,0.00024133,2]
[355090635,1740888647076,-500.0,0.00024133,2]
[355090636,1740888647086,-507.51,0.00024133,2]
[355090637,1740888647095,-858.99,0.00024133,2]
[355090638,1740888647105,-3444.39,0.00024133,2]
[355090639,1740888647115,-2281.9,0.00024133,2]
[355090640,1740888647125,-500.0,0.00024133,2]
[355090641,1740888647134,-500.0,0.00024133,2]
[355090642,1740888647144,-500.0,0.00024133,2]
[355090643,1740888647153,-1630.25,0.00024133,2]
[355090644,1740888647163,-500.0,0.00024133,2]
[355090645,1740888647172,-911.84,0.00024133,2]
[355090646,1740888647181,-500.0,0.00024133,2]
[355090647,1740888647190,-196.5,0.00024133,2]
[355090648,1740888647200,-3860.43,0.00024133,2]
[355090649,1740888647210,-2721.24,0.00024133,2]
[355090650,1740888647219,-1181.87,0.00024133,2]
[355090651,1740888647229,-1106.3,0.00024133,2]
[355090652,1740888647239,-500.0,0.00024133,2]
[355090653,1740888647248,-500.0,0.00024134,2]
[355090654,1740888647258,-500.0,0.00024134,2]
[355090655,1740888647267,-500.0,0.00024134,2]
[355090656,1740888647277,-500.0,0.00024134,2]
[355090657,1740888647287,-500.0,0.00024134,2]
[355090658,1740888647297,-23508.95,0.00024134,2]
[355090659,1740888647307,-536.31,0.00024134,2]
[355090660,1740888647316,-500.0,0.00024134,2]
[355090661,1740888647326,-690.48,0.00024134,2]
[355090662,1740888647335,-377.0,0.00024134,2]
[355090663,1740888647346,-643.18,0.00024134,2]
[355090664,1740888647356,-500.0,0.00024134,2]
[355090665,1740888647366,-500.0,0.00024134,2]
[355090666,1740888647375,-500.0,0.00024134,2]
[355090667,1740888647384,-500.0,0.00024134,2]
[355090668,1740888647395,-500.0,0.00024138,2]
[355090669,1740888647405,-500.0,0.00024138,2]
[355090670,1740888647414,-500.0,0.00024138,2]
[355090671,1740888647424,-361.78,0.00024138,2]
[355090672,1740888647435,-505.9588988,0.00024138,2]
[355090673,1740888647445,-500.0,0.00024138,2]
[355090674,1740888647456,-500.0,0.00024138,2]
[355090675,1740888647466,-500.0,0.00024138,2]
[355090676,1740888647475,-500.0,0.00024138,2]
[355090677,1740888647484,-500.0,0.00024138,2]
[355090678,1740888647494,-324.26,0.00024138,2]
[355090679,1740888647503,-500.0,0.00024138,2]
[355090680,1740888647513,-221.7,0.00024138,2]
[355090681,1740888647522,-659.33,0.00024138,2]
[355090682,1740888647533,-500.0,0.00024138,2]
[355090683,1740888647543,-500.0,0.00024138,2]
[355090684,1740888647552,-500.0,0.00024138,2]
[355090685,1740888647562,-500.0,0.00024138,2]
[355090686,1740888647571,-500.0,0.00024138,2]
[355090687,1740888647580,-500.0,0.00024138,2]
[355090688,1740888647590,-500.0,0.00024138,2]
[355090689,1740888647599,-500.0,0.00024138,2]
[355090690,1740888647609,-500.0,0.00024138,2]
[355090691,1740888647619,-500.0,0.00024138,2]
[355090692,1740888647628,-500.0,0.00024138,2]
[355090693,1740888647637,-500.0,0.00024138,2]
[355090694,1740888647647,-583.48,0.00024138,2]
[355090695,1740888647656,-500.0,0.00024138,2]
[355090696,1740888647666,-500.0,0.00024138,2]
[355090697,1740888647675,-500.0,0.00024138,2]
[355090698,1740888647684,-500.0,0.00024138,2]
[355090699,1740888647694,-500.0,0.00024138,2]
[355090700,1740888647703,-500.0,0.00024138,2]
[355090701,1740888647712,-500.0,0.00024138,2]
[355090702,1740888647721,-500.0,0.00024138,2]
[355090703,1740888647731,-500.0,0.00024138,2]
[355090704,1740888647740,-500.0,0.00024138,2]
[355090705,1740888647750,-500.0,0.00024138,2]
[355090706,1740888647759,-260.0,0.00024138,2]
[355090707,1740888647769,-500.0,0.00024138,2]
[355090708,1740888647778,-292.36,0.00024138,2]
[355090709,1740888647788,-312.48,0.00024138,2]
[355090710,1740888647797,-860.01,0.00024138,2]
[355090711,1740888647807,-500.0,0.00024138,2]
[355090712,1740888647816,-500.0,0.00024138,2]
[355090713,1740888647826,-500.0,0.00024138,2]
[355090714,1740888647835,-157.14,0.00024138,2]
[355090715,1740888647844,-604.62,0.00024138,2]
[355090716,1740888647853,-547.74,0.00024138,2]
[355090717,1740888647863,-500.0,0.00024138,2]
[355090718,1740888647876,-500.0,0.00024138,2]
[355090719,1740888647887,-500.0,0.00024138,2]
[355090720,1740888647896,-500.0,0.00024138,2]
[355090721,1740888647906,-344.97,0.00024138,2]
[355090722,1740888647916,-294.42,0.00024138,2]
[355090723,1740888647926,-500.0,0.00024138,2]
[355090724,1740888647936,-500.0,0.00024138,2]
[355090725,1740888647949,-500.0,0.00024138,2]
[355090726,1740888647958,-500.0,0.00024138,2]
[355090727,1740888647967,-500.0,0.00024138,2]
[355090728,1740888647977,-500.0,0.00024138,2]
[355090729,1740888647988,-500.0,0.00024138,2]
[355090730,1740888647997,-500.0,0.00024138,2]
[355090731,1740888648007,-688.29,0.00024138,2]
[355090732,1740888648017,-500.0,0.00024138,2]
[355090733,1740888648027,-500.0,0.00024138,2]
[355090734,1740888648038,-500.0,0.00024138,2]
[355090735,1740888648048,-500.0,0.00024138,2]
[355090736,1740888648058,-598.59,0.00024138,2]
[355090737,1740888648069,-500.0,0.00024138,2]
[355090738,1740888648078,-500.0,0.00024138,2]
[355090739,1740888648088,-902.77,0.00024138,2]
[355090740,1740888648097,-271.89,0.00024138,2]
[355090741,1740888648107,-500.0,0.00024138,2]
[355090742,1740888648117,-500.0,0.00024138,2]
[355090743,1740888648126,-310.68,0.00024138,2]
[355090744,1740888648136,-500.0,0.00024138,2]
[355090745,1740888648146,-500.0,0.00024138,2]
[355090746,1740888648155,-500.0,0.00024138,2]
[355090747,1740888648165,-500.0,0.00024138,2]
[355090748,1740888648174,-500.0,0.00024138,2]
[355090749,1740888648184,-500.0,0.00024138,2]
[355090750,1740888648194,-540.37,0.00024138,2]
[355090751,1740888648203,-161.1,0.00024138,2]
[355090752,1740888648213,-500.0,0.00024138,2]
[355090753,1740888648222,-500.0,0.00024138,2]
[355090754,1740888648232,-500.0,0.00024138,2]
[355090755,1740888648241,-284.14,0.00024138,2]
[355090756,1740888648250,-500.0,0.00024173,2]
[355090757,1740888648260,-500.0,0.00024173,2]
[355090758,1740888648269,-264.4389013,0.00024173,2]
[355090759,1740888648280,-500.0,0.00024173,2]
[355090760,1740888648290,-505.72196657,0.00024173,2]
[355090761,1740888648301,-500.0,0.00024173,2]
[355090762,1740888648311,-509.09062463,0.00024173,2]
[355090763,1740888648320,-500.0,0.00024173,2]
[355090764,1740888648329,-500.0,0.00024173,2]
[355090765,1740888648339,-500.0,0.00024173,2]
[355090766,1740888648350,-500.0,0.00024173,2]
[355090767,1740888648360,-500.0,0.00024173,2]
[355090768,1740888648369,-500.0,0.00024173,2]
[355090769,1740888648379,-500.0,0.00024173,2]
[355090770,1740888648388,-500.0,0.00024173,2]
[355090771,1740888648397,-635.48681888,0.00024173,2]
[355090772,1740888648406,-500.0,0.00024173,2]
[355090773,1740888648416,-470.53928361,0.00024204,2]
[355090774,1740888648426,-500.0,0.00024239,2]
[355090775,1740888648436,-500.0,0.00024239,2]
[355090776,1740888648446,-501.11,0.00024239,2]
[355090777,1740888648455,-527.77,0.00024239,2]
[355090778,1740888648465,-500.0,0.00024239,2]
[355090779,1740888648475,-500.0,0.00024239,2]
[355090780,1740888648485,-500.0,0.00024239,2]
[355090781,1740888648494,-500.0,0.00024239,2]
[355090782,1740888648504,-500.0,0.00024239,2]
[355090783,1740888648514,-500.0,0.00024241,2]
[355090784,1740888648524,-500.0,0.00024241,2]
[355090785,1740888648535,-356.02,0.00024241,2]
[355090786,1740888648545,-500.0,0.00024241,2]
[355090787,1740888648556,-500.0,0.00024241,2]
[355090788,1740888648565,-500.0,0.00024241,2]
[355090789,1740888648575,-534.7,0.00024241,2]
[355090790,1740888648584,-500.0,0.00024306,2]
[355090791,1740888648594,-500.0,0.00024313,2]
[355090792,1740888648603,-500.0,0.00024407,2]
[355090793,1740888648613,-460.86,0.00024407,2]
[355090794,1740888648623,-1025.66,0.00024407,2]
[355090795,1740888648632,-500.0,0.00024407,2]
[355090796,1740888648641,-500.0,0.00024407,2]
[355090797,1740888648651,-525.58,0.00024407,2]
[355090798,1740888648660,-500.0,0.00024407,2]
[355090799,1740888648671,-1638.19,0.00024407,2]
[355090800,1740888648680,-500.0,0.00024407,2]
[355090801,1740888648690,-1982.43,0.00024407,2]
[355090802,1740888648700,-428.36,0.00024407,2]
[355090803,1740888648718,-573.94,0.00024407,2]
[355090804,1740888648729,-500.0,0.00024407,2]
[355090805,1740888648739,-560.23,0.00024407,2]
[355090806,1740888648748,-1689.14,0.00024407,2]
[355090807,1740888648757,-1352.81,0.00024407,2]
[355090808,1740888648767,-953.11,0.00024407,2]
[355090809,1740888648776,-500.0,0.00024407,2]
[355090810,1740888648788,-500.0,0.00024407,2]
[355090811,1740888648797,-231.42,0.00024407,5]
[355090812,1740888648807,-500.0,0.00024407,2]
[355090813,1740888648817,-579.91,0.00024407,2]
[355090814,1740888648826,-500.0,0.00024407,2]
[355090815,1740888648836,-500.0,0.00024407,2]
[355090816,1740888648846,-500.0,0.00024407,2]
[355090817,1740888648855,-500.0,0.00024407,2]
[355090818,1740888648865,-1516.59,0.00024407,2]
[355090819,1740888648874,-500.0,0.00024407,2]
[355090820,1740888648885,-507.51,0.00024407,2]
[355090821,1740888648894,-858.99,0.00024407,2]
[355090822,1740888648904,-3444.39,0.00024407,2]
[355090823,1740888648913,-2281.9,0.00024407,2]
[355090824,1740888648923,-500.0,0.00024407,2]
[355090825,1740888648933,-500.0,0.00024407,2]
[355090826,1740888648947,-500.0,0.00024407,2]
[355090827,1740888648957,-1630.25,0.00024407,2]
[355090828,1740888648966,-500.0,0.00024407,2]
[355090829,1740888648976,-911.84,0.00024407,2]
[355090830,1740888648986,-500.0,0.00024407,2]
[355090831,1740888648996,-3860.43,0.00024407,2]
[355090832,1740888649006,-2721.24,0.00024407,2]
[355090833,1740888649017,-1181.87,0.00024407,2]
[355090834,1740888649027,-1106.3,0.00024407,2]
[355090835,1740888649036,-500.0,0.00024407,2]
[355090836,1740888649046,-336.06,0.00024408,2]
[355090837,1740888649055,-500.0,0.00024408,2]
[355090838,1740888649064,-500.0,0.00024408,2]
[355090839,1740888649074,-500.0,0.00024408,2]
[355090840,1740888649083,-500.0,0.00024408,2]
[355090841,1740888649093,-23508.95,0.00024408,2]
[355090842,1740888649102,-536.31,0.00024408,2]
[355090843,1740888649112,-500.0,0.00024408,2]
[355090844,1740888649122,-690.48,0.00024408,2]
[355090845,1740888649132,-500.0,0.00024408,2]
[355090846,1740888649141,-500.0,0.00024408,2]
[355090847,1740888649151,-383.41,0.00024408,2]
[355090848,1740888649161,-500.0,0.00024408,2]
[355090849,1740888649170,-500.0,0.00024412,2]
[355090850,1740888649180,-579.06,0.00024412,2]
[355090851,1740888649189,-500.0,0.00024412,2]
[355090852,1740888649199,-188.56,0.00024412,2]
[355090853,1740888649209,-500.0,0.00024412,2]
[355090854,1740888649219,-526.2,0.00024412,2]
[355090855,1740888649228,-500.0,0.00024412,2]
[355090856,1740888649238,-500.0,0.00024412,2]
[355090857,1740888649247,-500.0,0.00024412,2]
[355090858,1740888649256,-659.33,0.00024412,2]
[355090859,1740888649267,-500.0,0.00024412,2]
[355090860,1740888649276,-485.14,0.00024412,2]
[355090861,1740888649287,-500.0,0.00024412,2]
[355090862,1740888649297,-500.0,0.00024412,2]
[355090863,1740888649307,-500.0,0.00024412,2]
[355090864,1740888649317,-500.0,0.00024412,2]
[355090865,1740888649327,-500.0,0.00024412,2]
[355090866,1740888649337,-500.0,0.00024412,2]
[355090867,1740888649347,-500.0,0.00024412,2]
[355090868,1740888649356,-456.44,0.00024412,2]
[355090869,1740888649366,-500.0,0.00024412,2]
[355090870,1740888649378,-500.0,0.00024412,2]
[355090871,1740888649389,-583.48,0.00024412,2]
[355090872,1740888649399,-500.0,0.00024412,2]
[355090873,1740888649409,-298.75,0.00024412,2]
[355090874,1740888649418,-500.0,0.00024412,2]
[355090875,1740888649427,-500.0,0.00024412,2]
[355090876,1740888649437,-500.0,0.00024412,2]
[355090877,1740888649447,-377.2,0.00024412,2]
[355090878,1740888649456,-500.0,0.00024412,2]
[355090879,1740888649465,-500.0,0.00024412,2]
[355090880,1740888649474,-187.34,0.00024412,2]
[355090881,1740888649483,-500.0,0.00024412,2]
[355090882,1740888649492,-500.0,0.00024412,2]
[355090883,1740888649502,-168.62,0.00024412,2]
[355090884,1740888649511,-860.01,0.00024412,2]
[355090885,1740888649520,-211.36,0.00024412,2]
[355090886,1740888649530,-436.22,0.00024412,2]
[355090887,1740888649540,-500.0,0.00024412,2]
[355090888,1740888649549,-547.74,0.00024412,2]
[355090889,1740888649559,-500.0,0.00024412,2]
[355090890,1740888649568,-628.42,0.00024412,2]
[355090891,1740888649577,-500.0,0.00024412,2]
[355090892,1740888649587,-500.0,0.00024412,2]
[355090893,1740888649598,-500.0,0.00024412,2]
[355090894,1740888649608,-500.0,0.00024412,2]
[355090895,1740888649617,-500.0,0.00024412,2]
[355090896,1740888649627,-500.0,0.00024412,2]
[355090897,1740888649637,-259.62,0.00024412,2]
[355090898,1740888649647,-500.0,0.00024412,2]
[355090899,1740888649656,-268.75,0.00024412,2]
[355090900,1740888649667,-500.0,0.00024412,2]
[355090901,1740888649676,-688.29,0.00024412,2]
[355090902,1740888649685,-500.0,0.00024412,2]
[355090903,1740888649695,-500.0,0.00024412,2]
[355090904,1740888649706,-500.0,0.00024412,2]
[355090905,1740888649715,-500.0,0.00024412,2]
[355090906,1740888649725,-598.59,0.00024412,2]
[355090907,1740888649735,-500.0,0.00024412,2]
[355090908,1740888649744,-500.0,0.00024412,2]
[355090909,1740888649753,-902.77,0.00024412,2]
[355090910,1740888649762,-500.0,0.00024412,2]
[355090911,1740888649772,-500.0,0.00024412,2]
[355090912,1740888649781,-500.0,0.00024412,2]
[355090913,1740888649791,-500.0,0.00024412,2]
[355090914,1740888649801,-553.6,0.00024412,2]
[355090915,1740888649810,-500.0,0.00024412,2]
[355090916,1740888649820,-500.0,0.00024412,2]
[355090917,1740888649830,-213.73,0.00024412,2]
[355090918,1740888649839,-540.37,0.00024412,2]
[355090919,1740888649849,-509.62868978,0.00024412,2]
[355090920,1740888649858,-346.3,0.00024412,2]
[355090921,1740888649868,-500.0,0.00024412,2]
[355090922,1740888649878,-631.92,0.00024513,2]
[355090923,1740888649888,-500.0,0.00024513,2]
[355090924,1740888649897,-501.11,0.00024513,2]
[355090925,1740888649906,-527.77,0.00024513,2]
[355090926,1740888649915,-500.0,0.00024513,2]
[355090927,1740888649925,-500.0,0.00024513,2]
[355090928,1740888649935,-274.56,0.00024513,2]
[355090929,1740888649947,-500.0,0.00024513,2]
[355090930,1740888649957,-368.56,0.00024513,2]
[355090931,1740888649967,-500.0,0.00024515,2]
[355090932,1740888649975,-500.0,0.00024515,2]
[355090933,1740888649986,-500.0,0.00024515,2]
[355090934,1740888649995,-500.0,0.00024515,2]
[355090935,1740888650004,-205.6,0.00024515,2]
[355090936,1740888650014,-500.0,0.00024658,2]
[355090937,1740888650024,-500.0,0.00024658,2]
[355090938,1740888650035,-461.88143492,0.00024658,2]
[355090939,1740888650045,-3000.0,0.0002468,7]
[355090940,1740888650054,-500.0,0.00024681,2]
[355090941,1740888650064,-1025.66,0.00024681,2]
[355090942,1740888650073,-500.0,0.00024681,2]
[355090943,1740888650083,-500.0,0.00024681,2]
[355090944,1740888650092,-525.58,0.00024681,2]
[355090945,1740888650101,-500.0,0.00024681,2]
[355090946,1740888650112,-1638.19,0.00024681,2]
[355090947,1740888650121,-500.0,0.00024681,2]
[355090948,1740888650131,-1982.43,0.00024681,2]
[355090949,1740888650141,-573.94,0.00024681,2]
[355090950,1740888650151,-500.0,0.00024681,2]
[355090951,1740888650160,-560.23,0.00024681,2]
[355090952,1740888650170,-1689.14,0.00024681,2]
[355090953,1740888650179,-1352.81,0.00024681,2]
[355090954,1740888650189,-953.11,0.00024681,2]
[355090955,1740888650199,-500.0,0.00024681,2]
[355090956,1740888650208,-500.0,0.00024681,2]
[355090957,1740888650219,-500.0,0.00024681,2]
[355090958,1740888650229,-579.91,0.00024681,2]
[355090959,1740888650239,-236.84,0.00024681,2]
[355090960,1740888650248,-500.0,0.00024681,2]
[355090961,1740888650259,-500.0,0.00024681,2]
[355090962,1740888650268,-500.0,0.00024681,2]
[355090963,1740888650278,-1516.59,0.00024681,2]
[355090964,1740888650288,-500.0,0.00024681,2]
[355090965,1740888650297,-507.51,0.00024681,2]
[355090966,1740888650308,-858.99,0.00024681,2]
[355090967,1740888650318,-3444.39,0.00024681,2]
[355090968,1740888650328,-2281.9,0.00024681,2]
[355090969,1740888650338,-500.0,0.00024681,2]
[355090970,1740888650348,-500.0,0.00024681,2]
[355090971,1740888650358,-500.0,0.00024681,2]
[355090972,1740888650369,-1630.25,0.00024681,2]
[355090973,1740888650379,-500.0,0.00024681,2]
[355090974,1740888650389,-911.84,0.00024681,2]
[355090975,1740888650399,-500.0,0.00024681,2]
[355090976,1740888650409,-3860.43,0.00024681,2]
[355090977,1740888650420,-2721.24,0.00024681,2]
[355090978,1740888650430,-1106.3,0.00024681,2]
[355090979,1740888650442,-1181.87,0.00024681,2]
[355090980,1740888650452,-500.0,0.00024681,2]
[355090981,1740888650464,-500.0,0.00024682,2]
[355090982,1740888650474,-500.0,0.00024682,2]
[355090983,1740888650485,-500.0,0.00024682,2]
[355090984,1740888650497,-500.0,0.00024682,2]
[355090985,1740888650508,-23508.95,0.00024682,2]
[355090986,1740888650519,-536.31,0.00024682,2]
[355090987,1740888650531,-500.0,0.00024682,2]
[355090988,1740888650540,-690.48,0.00024682,2]
[355090989,1740888650550,-300.14,0.00024682,2]
[355090990,1740888650560,-500.0,0.00024682,2]
[355090991,1740888650570,-500.0,0.00024682,2]
[355090992,1740888650580,-500.0,0.00024686,2]
[355090993,1740888650590,-500.0,0.00024686,2]
[355090994,1740888650600,-500.0,0.00024686,2]
[355090995,1740888650610,-500.0,0.00024686,2]
[355090996,1740888650620,-500.0,0.00024686,2]
[355090997,1740888650629,-500.0,0.00024686,2]
[355090998,1740888650639,-659.33,0.00024686,2]
[355090999,1740888650649,-500.0,0.00024686,2]
[355091000,1740888650658,-500.0,0.00024686,2]
[355091001,1740888650668,-500.0,0.00024686,2]
[355091002,1740888650678,-500.0,0.00024686,2]
[355091003,1740888650687,-500.0,0.00024686,2]
[355091004,1740888650698,-500.0,0.00024686,2]
[355091005,1740888650707,-536.72,0.00024686,2]
[355091006,1740888650717,-500.0,0.00024686,2]
[355091007,1740888650727,-500.0,0.00024686,2]
[355091008,1740888650736,-500.0,0.00024686,2]
[355091009,1740888650746,-583.48,0.00024686,2]
[355091010,1740888650756,-500.0,0.00024686,2]
[355091011,1740888650765,-500.0,0.00024686,2]
[355091012,1740888650775,-500.0,0.00024686,2]
[355091013,1740888650785,-500.0,0.00024686,2]
[355091014,1740888650795,-500.0,0.00024686,2]
[355091015,1740888650805,-500.0,0.00024686,2]
[355091016,1740888650814,-500.0,0.00024686,2]
[355091017,1740888650824,-301.46,0.00024686,2]
[355091018,1740888650834,-860.01,0.00024686,2]
[355091019,1740888650843,-500.0,0.00024686,2]
[355091020,1740888650853,-547.74,0.00024686,2]
[355091021,1740888650862,-393.56,0.00024686,2]
[355091022,1740888650872,-500.0,0.00024686,2]
[355091023,1740888650882,-500.0,0.00024686,2]
[355091024,1740888650892,-500.0,0.00024686,2]
[355091025,1740888650902,-500.0,0.00024686,2]
[355091026,1740888650912,-500.0,0.00024686,2]
[355091027,1740888650922,-500.0,0.00024686,2]
[355091028,1740888650933,-500.0,0.00024686,2]
[355091029,1740888650945,-288.18,0.00024686,2]
[355091030,1740888650955,-688.29,0.00024686,2]
[355091031,1740888650965,-500.0,0.00024686,2]
[355091032,1740888650975,-500.0,0.00024686,2]
[355091033,1740888650987,-513.2,0.00024686,2]
[355091034,1740888650996,-500.0,0.00024686,2]
[355091035,1740888651006,-598.59,0.00024686,2]
[355091036,1740888651017,-500.0,0.00024686,2]
[355091037,1740888651027,-500.0,0.00024686,2]
[355091038,1740888651038,-902.77,0.00024686,2]
[355091039,1740888651048,-500.0,0.00024686,2]